fUSD/lending_fUSD_20260614
["ID","MTS","AMOUNT","RATE_DAILY","PERIOD"]
[425008661,1781412642000,-566.63,0.00027397,2]
[425008669,1781412642000,-724.35,0.00027397,2]
[425008670,1781412642000,-500.0,0.00027397,2]
[425008667,1781412642000,-500.0,0.00027397,2]
[425008666,1781412642000,-500.0,0.00027397,2]
[425008668,1781412642000,-500.0,0.00027397,2]
[425008664,1781412642000,-500.0,0.00027397,2]
[425008663,1781412642000,-500.0,0.00027397,2]
[425008665,1781412642000,-1188.61,0.00027397,2]
[425008659,1781412642000,-1067.55,0.00027397,2]
[425008662,1781412642000,-1023.92,0.00027397,2]
[425008745,1781412643000,-1902.0,0.00027397,2]
[425008753,1781412643000,-500.0,0.00027397,2]
[425008750,1781412643000,-500.0,0.00027397,2]
[425008747,1781412643000,-500.0,0.00027397,2]
[425008757,1781412643000,-500.0,0.00027397,2]
[425008744,1781412643000,-1599.02,0.00027397,2]
[425008752,1781412643000,-500.0,0.00027397,2]
[425008749,1781412643000,-500.0,0.00027397,2]
[425008748,1781412643000,-4650.25,0.00027397,2]
[425008746,1781412643000,-500.0,0.00027397,2]
[425008751,1781412643000,-1662.26,0.00027397,2]
[425008756,1781412643000,-9318.37,0.00027397,2]
[425008755,1781412643000,-500.0,0.00027397,2]
[425008762,1781412643000,-882.04,0.00027397,2]
[425008758,1781412643000,-6854.6,0.00027397,2]
[425008759,1781412643000,-2657.03,0.00027397,2]
[425008766,1781412643000,-500.0,0.00027397,2]
[425008765,1781412643000,-500.0,0.00027397,2]
[425008768,1781412643000,-620.22,0.00027397,2]
[425008764,1781412643000,-500.0,0.00027397,2]
[425008760,1781412643000,-500.0,0.00027397,2]
[425008763,1781412643000,-300.26733832,0.00027397,2]
[425008761,1781412643000,-500.0,0.00027397,2]
[425008769,1781412643000,-633.46,0.00027397,2]
[425008770,1781412643000,-1056.98,0.00027397,2]
[425008767,1781412643000,-626.27,0.00027397,2]
[425008740,1781412643000,-500.0,0.00027397,2]
[425008754,1781412643000,-1387.47,0.00027397,2]
[425008742,1781412643000,-500.0,0.00027397,2]
[425008713,1781412643000,-1526.17,0.00027397,2]
[425008743,1781412643000,-845.76,0.00027397,2]
[425008711,1781412643000,-2302.95,0.00027397,2]
[425008771,1781412643000,-509.28,0.00027397,2]
[425008715,1781412643000,-500.0,0.00027397,2]
[425008714,1781412643000,-5454.3,0.00027397,2]
[425008712,1781412643000,-466.60237095,0.00027397,2]
[425008717,1781412643000,-648.05,0.00027397,2]
[425008716,1781412643000,-500.0,0.00027397,2]
[425008721,1781412643000,-500.0,0.00027397,2]
[425008718,1781412643000,-1236.56,0.00027397,2]
[425008719,1781412643000,-663.4,0.00027397,2]
[425008722,1781412643000,-500.0,0.00027397,2]
[425008724,1781412643000,-500.0,0.00027397,2]
[425008723,1781412643000,-500.0,0.00027397,2]
[425008741,1781412643000,-1736.16,0.00027397,2]
[425008731,1781412643000,-2205.29,0.00027397,2]
[425008726,1781412643000,-500.0,0.00027397,2]
[425008727,1781412643000,-500.0,0.00027397,2]
[425008725,1781412643000,-500.0,0.00027397,2]
[425008729,1781412643000,-500.0,0.00027397,2]
[425008730,1781412643000,-500.0,0.00027397,2]
[425008732,1781412643000,-500.0,0.00027397,2]
[425008733,1781412643000,-660.0,0.00027397,2]
[425008735,1781412643000,-1631.77,0.00027397,2]
[425008736,1781412643000,-500.0,0.00027397,2]
[425008734,1781412643000,-500.0,0.00027397,2]
[425008737,1781412643000,-500.0,0.00027397,2]
[425008738,1781412643000,-500.0,0.00027397,2]
[425008739,1781412643000,-500.0,0.00027397,2]
[425008728,1781412643000,-2119.65,0.00027397,2]
[425008772,1781412643000,-500.0,0.00027397,2]
[425008720,1781412643000,-867.36,0.00027397,2]
[425008775,1781412643000,-500.0,0.00027397,2]
[425008807,1781412643000,-500.0,0.00027397,2]
[425008809,1781412643000,-500.0,0.00027397,2]
[425008806,1781412643000,-500.0,0.00027397,2]
[425008811,1781412643000,-500.0,0.00027397,2]
[425008812,1781412643000,-500.0,0.00027397,2]
[425008815,1781412643000,-2799.41,0.00027397,2]
[425008814,1781412643000,-1287.79,0.00027397,2]
[425008818,1781412643000,-655.79,0.00027397,2]
[425008817,1781412643000,-1310.78,0.00027397,2]
[425008816,1781412643000,-592.15,0.00027397,2]
[425008824,1781412643000,-500.0,0.00027397,2]
[425008820,1781412643000,-1754.68,0.00027397,2]
[425008819,1781412643000,-815.14,0.00027397,2]
[425008808,1781412643000,-500.0,0.00027397,2]
[425008821,1781412643000,-1116.71,0.00027397,2]
[425008822,1781412643000,-544.77,0.00027397,2]
[425008813,1781412643000,-3257.38,0.00027397,2]
[425008834,1781412643000,-500.0,0.00027397,2]
[425008825,1781412643000,-569.25,0.00027397,2]
[425008826,1781412643000,-824.3,0.00027397,2]
[425008829,1781412643000,-527.3,0.00027397,2]
[425008832,1781412643000,-621.52,0.00027397,2]
[425008831,1781412643000,-518.86,0.00027397,2]
[425008827,1781412643000,-500.0,0.00027397,2]
[425008833,1781412643000,-477.65729563,0.00027397,2]
[425008836,1781412643000,-500.0,0.00027397,2]
[425008837,1781412643000,-924.83,0.00027397,2]
[425008783,1781412643000,-595.66,0.00027397,2]
[425008823,1781412643000,-500.0,0.00027397,2]
[425008810,1781412643000,-992.53,0.00027397,2]
[425008835,1781412643000,-730.77,0.00027397,2]
[425008805,1781412643000,-600.08181908,0.00027397,2]
[425008804,1781412643000,-1973.29,0.00027397,2]
[425008777,1781412643000,-500.0,0.00027397,2]
[425008778,1781412643000,-1091.01,0.00027397,2]
[425008781,1781412643000,-524.11,0.00027397,2]
[425008776,1781412643000,-500.0,0.00027397,2]
[425008773,1781412643000,-500.0,0.00027397,2]
[425008779,1781412643000,-500.0,0.00027397,2]
[425008784,1781412643000,-811.39,0.00027397,2]
[425008780,1781412643000,-500.0,0.00027397,2]
[425008782,1781412643000,-1201.05,0.00027397,2]
[425008785,1781412643000,-1058.56,0.00027397,2]
[425008789,1781412643000,-591.86928882,0.00027397,2]
[425008786,1781412643000,-566.83,0.00027397,2]
[425008790,1781412643000,-1131.84,0.00027397,2]
[425008774,1781412643000,-500.0,0.00027397,2]
[425008787,1781412643000,-500.0,0.00027397,2]
[425008788,1781412643000,-500.0,0.00027397,2]
[425008803,1781412643000,-1371.78,0.00027397,2]
[425008800,1781412643000,-500.0,0.00027397,2]
[425008801,1781412643000,-1561.3,0.00027397,2]
[425008802,1781412643000,-643.87,0.00027397,2]
[425008798,1781412643000,-509.58,0.00027397,2]
[425008799,1781412643000,-556.33,0.00027397,2]
[425008791,1781412643000,-500.0,0.00027397,2]
[425008796,1781412643000,-787.41,0.00027397,2]
[425008795,1781412643000,-500.0,0.00027397,2]
[425008793,1781412643000,-2165.46,0.00027397,2]
[425008792,1781412643000,-500.0,0.00027397,2]
[425008794,1781412643000,-500.0,0.00027397,2]
[425008797,1781412643000,-500.0,0.00027397,2]
[425008877,1781412644000,-872.27,0.00027397,2]
[425008875,1781412644000,-182.22986512,0.00027397,2]
[425008878,1781412644000,-1241.94,0.00027397,2]
[425008874,1781412644000,-500.0,0.00027397,2]
[425008871,1781412644000,-500.0,0.00027397,2]
[425008872,1781412644000,-575.72,0.00027397,2]
[425008868,1781412644000,-500.0,0.00027397,2]
[425008882,1781412644000,-500.0,0.00027397,2]
[425008867,1781412644000,-1815.68,0.00027397,2]
[425008873,1781412644000,-500.0,0.00027397,2]
[425008869,1781412644000,-929.75,0.00027397,2]
[425008884,1781412644000,-571.46,0.00027397,2]
[425008876,1781412644000,-404.57633728,0.00027397,2]
[425008881,1781412644000,-504.09,0.00027397,2]
[425008880,1781412644000,-7344.99,0.00027397,2]
[425008879,1781412644000,-500.0,0.00027397,2]
[425008883,1781412644000,-500.0,0.00027397,2]
[425008887,1781412644000,-500.0,0.00027397,2]
[425008897,1781412644000,-500.0,0.00027397,2]
[425008889,1781412644000,-2160.35,0.00027397,2]
[425008886,1781412644000,-500.0,0.00027397,2]
[425008888,1781412644000,-500.0,0.00027397,2]
[425008870,1781412644000,-500.0,0.00027397,2]
[425008890,1781412644000,-500.0,0.00027397,2]
[425008885,1781412644000,-984.25,0.00027397,2]
[425008866,1781412644000,-500.0,0.00027397,2]
[425008851,1781412644000,-500.0,0.00027397,2]
[425008863,1781412644000,-500.0,0.00027397,2]
[425008893,1781412644000,-500.0,0.00027397,2]
[425008838,1781412644000,-500.0,0.00027397,2]
[425008839,1781412644000,-500.0,0.00027397,2]
[425008850,1781412644000,-500.0,0.00027397,2]
[425008841,1781412644000,-674.46,0.00027397,2]
[425008840,1781412644000,-500.0,0.00027397,2]
[425008842,1781412644000,-1133.72,0.00027397,2]
[425008846,1781412644000,-1004.12,0.00027397,2]
[425008843,1781412644000,-648.1,0.00027397,2]
[425008844,1781412644000,-850.13,0.00027397,2]
[425008848,1781412644000,-500.0,0.00027397,2]
[425008847,1781412644000,-500.0,0.00027397,2]
[425008865,1781412644000,-1467.58,0.00027397,2]
[425008845,1781412644000,-500.0,0.00027397,2]
[425008855,1781412644000,-1139.19,0.00027397,2]
[425008854,1781412644000,-1061.75,0.00027397,2]
[425008856,1781412644000,-578.37,0.00027397,2]
[425008853,1781412644000,-774.42,0.00027397,2]
[425008859,1781412644000,-516.79,0.00027397,2]
[425008852,1781412644000,-500.0,0.00027397,2]
[425008860,1781412644000,-500.0,0.00027397,2]
[425008862,1781412644000,-500.0,0.00027397,2]
[425008857,1781412644000,-8085.8,0.00027397,2]
[425008861,1781412644000,-4916.71,0.00027397,2]
[425008858,1781412644000,-500.0,0.00027397,2]
[425008864,1781412644000,-500.0,0.00027397,2]
[425008849,1781412644000,-500.0,0.00027397,2]
[425008895,1781412644000,-2361.19,0.00027397,2]
[425008905,1781412644000,-2098.88,0.00027397,2]
[425008894,1781412644000,-500.0,0.00027397,2]
[425008924,1781412644000,-500.0,0.00027397,2]
[425008921,1781412644000,-500.0,0.00027397,2]
[425008926,1781412644000,-500.0,0.00027397,2]
[425008928,1781412644000,-1091.59,0.00027397,2]
[425008932,1781412644000,-3355.96,0.00027397,2]
[425008942,1781412644000,-500.0,0.00027397,2]
[425008931,1781412644000,-1722.32,0.00027397,2]
[425008934,1781412644000,-500.0,0.00027397,2]
[425008933,1781412644000,-2155.6,0.00027397,2]
[425008936,1781412644000,-1797.01,0.00027397,2]
[425008938,1781412644000,-1317.99,0.00027397,2]
[425008935,1781412644000,-631.02,0.00027397,2]
[425008939,1781412644000,-884.1,0.00027397,2]
[425008937,1781412644000,-2696.04,0.00027397,2]
[425008941,1781412644000,-868.68,0.00027397,2]
[425008940,1781412644000,-4777.45,0.00027397,2]
[425008947,1781412644000,-960.98,0.00027397,2]
[425008950,1781412644000,-500.0,0.00027397,2]
[425008946,1781412644000,-500.0,0.00027397,2]
[425008945,1781412644000,-1508.58,0.00027397,2]
[425008891,1781412644000,-1003.72,0.00027397,2]
[425008951,1781412644000,-3565.89,0.00027397,2]
[425008948,1781412644000,-500.0,0.00027397,2]
[425008943,1781412644000,-500.0,0.00027397,2]
[425008944,1781412644000,-354.64980116,0.00027397,2]
[425008925,1781412644000,-19214.29,0.00027397,2]
[425008923,1781412644000,-500.0,0.00027397,2]
[425008949,1781412644000,-500.0,0.00027397,2]
[425008930,1781412644000,-500.0,0.00027397,2]
[425008929,1781412644000,-892.62,0.00027397,2]
[425008892,1781412644000,-500.0,0.00027397,2]
[425008896,1781412644000,-2257.06,0.00027397,2]
[425008900,1781412644000,-1503.8,0.00027397,2]
[425008908,1781412644000,-500.0,0.00027397,2]
[425008901,1781412644000,-2614.38,0.00027397,2]
[425008904,1781412644000,-500.0,0.00027397,2]
[425008903,1781412644000,-2554.65,0.00027397,2]
[425008899,1781412644000,-528.83,0.00027397,2]
[425008902,1781412644000,-500.0,0.00027397,2]
[425008907,1781412644000,-4552.31,0.00027397,2]
[425008906,1781412644000,-2256.66,0.00027397,2]
[425008909,1781412644000,-1758.65,0.00027397,2]
[425008898,1781412644000,-612.61,0.00027397,2]
[425008910,1781412644000,-500.0,0.00027397,2]
[425008913,1781412644000,-740.84,0.00027397,2]
[425008920,1781412644000,-1839.7,0.00027397,2]
[425008918,1781412644000,-500.0,0.00027397,2]
[425008917,1781412644000,-500.0,0.00027397,2]
[425008916,1781412644000,-500.0,0.00027397,2]
[425008922,1781412644000,-500.0,0.00027397,2]
[425008914,1781412644000,-622.72,0.00027397,2]
[425008915,1781412644000,-500.0,0.00027397,2]
[425008911,1781412644000,-2921.71,0.00027397,2]
[425008912,1781412644000,-644.49371407,0.00027397,2]
[425008919,1781412644000,-500.0,0.00027397,2]
[425008927,1781412644000,-612.48,0.00027397,2]
[425008977,1781412645000,-500.0,0.00027397,2]
[425008987,1781412645000,-667.3,0.00027397,2]
[425008980,1781412645000,-500.0,0.00027397,2]
[425008990,1781412645000,-500.0,0.00027397,2]
[425008983,1781412645000,-1029.1,0.00027397,2]
[425008981,1781412645000,-907.8,0.00027397,2]
[425008991,1781412645000,-500.0,0.00027397,2]
[425008979,1781412645000,-500.0,0.00027397,2]
[425008982,1781412645000,-866.43,0.00027397,2]
[425008984,1781412645000,-500.0,0.00027397,2]
[425008992,1781412645000,-1138.72,0.00027397,2]
[425008986,1781412645000,-2462.41,0.00027397,2]
[425008985,1781412645000,-500.0,0.00027397,2]
[425008989,1781412645000,-500.0,0.00027397,2]
[425009001,1781412645000,-1905.43,0.00027397,2]
[425008996,1781412645000,-500.0,0.00027397,2]
[425008994,1781412645000,-500.0,0.00027397,2]
[425008995,1781412645000,-796.66,0.00027397,2]
[425008997,1781412645000,-500.0,0.00027397,2]
[425008976,1781412645000,-500.0,0.00027397,2]
[425008988,1781412645000,-4683.5,0.00027397,2]
[425008975,1781412645000,-1416.97,0.00027397,2]
[425008959,1781412645000,-1022.94,0.00027397,2]
[425008969,1781412645000,-500.0,0.00027397,2]
[425008953,1781412645000,-1077.21,0.00027397,2]
[425008952,1781412645000,-500.0,0.00027397,2]
[425008954,1781412645000,-209.1954165,0.00027397,2]
[425008956,1781412645000,-500.0,0.00027397,2]
[425008955,1781412645000,-691.55,0.00027397,2]
[425008958,1781412645000,-892.97,0.00027397,2]
[425008957,1781412645000,-431.56256451,0.00027397,2]
[425008961,1781412645000,-500.0,0.00027397,2]
[425008963,1781412645000,-500.0,0.00027397,2]
[425008960,1781412645000,-500.0,0.00027397,2]
[425008962,1781412645000,-565.76,0.00027397,2]
[425008964,1781412645000,-1089.95,0.00027397,2]
[425008967,1781412645000,-500.0,0.00027397,2]
[425008966,1781412645000,-500.0,0.00027397,2]
[425008965,1781412645000,-500.0,0.00027397,2]
[425008968,1781412645000,-500.0,0.00027397,2]
[425008972,1781412645000,-500.0,0.00027397,2]
[425008974,1781412645000,-500.0,0.00027397,2]
[425008973,1781412645000,-500.0,0.00027397,2]
[425008970,1781412645000,-703.26,0.00027397,2]
[425008971,1781412645000,-257.27207736,0.00027397,2]
[425008978,1781412645000,-500.0,0.00027397,2]
[425008993,1781412645000,-883.05,0.00027397,2]
[425009003,1781412645000,-500.0,0.00027397,2]
[425008998,1781412645000,-542.77850399,0.00027397,2]
[425009037,1781412645000,-500.0,0.00027397,2]
[425009026,1781412645000,-637.78,0.00027397,2]
[425009030,1781412645000,-4620.02,0.00027397,2]
[425009028,1781412645000,-638.97,0.00027397,2]
[425009032,1781412645000,-500.0,0.00027397,2]
[425009035,1781412645000,-1818.3,0.00027397,2]
[425009029,1781412645000,-690.07,0.00027397,2]
[425009033,1781412645000,-500.0,0.00027397,2]
[425009031,1781412645000,-500.0,0.00027397,2]
[425009027,1781412645000,-572.46,0.00027397,2]
[425009036,1781412645000,-1978.69,0.00027397,2]
[425009039,1781412645000,-500.0,0.00027397,2]
[425009041,1781412645000,-500.0,0.00027397,2]
[425009043,1781412645000,-500.0,0.00027397,2]
[425009042,1781412645000,-1434.49,0.00027397,2]
[425009044,1781412645000,-500.0,0.00027397,2]
[425009045,1781412645000,-500.0,0.00027397,2]
[425009040,1781412645000,-500.0,0.00027397,2]
[425009046,1781412645000,-500.0,0.00027397,2]
[425009000,1781412645000,-853.29,0.00027397,2]
[425009038,1781412645000,-500.0,0.00027397,2]
[425009023,1781412645000,-500.0,0.00027397,2]
[425009034,1781412645000,-500.0,0.00027397,2]
[425009019,1781412645000,-1287.86,0.00027397,2]
[425009024,1781412645000,-1028.97,0.00027397,2]
[425008999,1781412645000,-500.0,0.00027397,2]
[425009002,1781412645000,-500.0,0.00027397,2]
[425009004,1781412645000,-880.56,0.00027397,2]
[425009007,1781412645000,-500.0,0.00027397,2]
[425009006,1781412645000,-500.0,0.00027397,2]
[425009008,1781412645000,-535.22440324,0.00027397,2]
[425009009,1781412645000,-1663.65,0.00027397,2]
[425009013,1781412645000,-500.0,0.00027397,2]
[425009010,1781412645000,-500.0,0.00027397,2]
[425009005,1781412645000,-673.61,0.00027397,2]
[425009011,1781412645000,-560.93,0.00027397,2]
[425009015,1781412645000,-500.0,0.00027397,2]
[425009025,1781412645000,-1152.52,0.00027397,2]
[425009014,1781412645000,-1070.85,0.00027397,2]
[425009016,1781412645000,-500.0,0.00027397,2]
[425009020,1781412645000,-2172.3,0.00027397,2]
[425009021,1781412645000,-500.0,0.00027397,2]
[425009018,1781412645000,-1339.46,0.00027397,2]
[425009017,1781412645000,-500.0,0.00027397,2]
[425009012,1781412645000,-500.0,0.00027397,2]
[425009022,1781412645000,-500.0,0.00027397,2]
[425009075,1781412646000,-544.93873881,0.00027397,2]
[425009086,1781412646000,-595.59,0.00027397,2]
[425009087,1781412646000,-854.75,0.00027397,2]
[425009082,1781412646000,-541.36,0.00027397,2]
[425009081,1781412646000,-500.0,0.00027397,2]
[425009078,1781412646000,-1643.27,0.00027397,2]
[425009083,1781412646000,-500.2,0.00027397,2]
[425009080,1781412646000,-706.89,0.00027397,2]
[425009077,1781412646000,-712.69,0.00027397,2]
[425009097,1781412646000,-500.0,0.00027397,2]
[425009079,1781412646000,-500.0,0.00027397,2]
[425009089,1781412646000,-1553.49,0.00027397,2]
[425009110,1781412646000,-585.03,0.00027397,2]
[425009088,1781412646000,-877.33,0.00027397,2]
[425009091,1781412646000,-500.0,0.00027397,2]
[425009092,1781412646000,-467.52786736,0.00027397,2]
[425009095,1781412646000,-500.0,0.00027397,2]
[425009096,1781412646000,-431.50262623,0.00027397,2]
[425009093,1781412646000,-2027.83,0.00027397,2]
[425009090,1781412646000,-500.0,0.00027397,2]
[425009098,1781412646000,-1310.37,0.00027397,2]
[425009099,1781412646000,-1045.55,0.00027397,2]
[425009109,1781412646000,-1250.29,0.00027397,2]
[425009101,1781412646000,-695.05,0.00027397,2]
[425009085,1781412646000,-3097.47,0.00027397,2]
[425009094,1781412646000,-500.0,0.00027397,2]
[425009084,1781412646000,-500.0,0.00027397,2]
[425009052,1781412646000,-500.0,0.00027397,2]
[425009070,1781412646000,-695.51,0.00027397,2]
[425009050,1781412646000,-3187.96,0.00027397,2]
[425009049,1781412646000,-1161.38,0.00027397,2]
[425009047,1781412646000,-500.0,0.00027397,2]
[425009048,1781412646000,-1003.32,0.00027397,2]
[425009103,1781412646000,-500.0,0.00027397,2]
[425009060,1781412646000,-719.38,0.00027397,2]
[425009061,1781412646000,-1071.25,0.00027397,2]
[425009051,1781412646000,-2542.25,0.00027397,2]
[425009053,1781412646000,-511.17,0.00027397,2]
[425009054,1781412646000,-500.0,0.00027397,2]
[425009058,1781412646000,-770.01,0.00027397,2]
[425009057,1781412646000,-1866.12,0.00027397,2]
[425009076,1781412646000,-500.0,0.00027397,2]
[425009056,1781412646000,-561.57435849,0.00027397,2]
[425009059,1781412646000,-500.0,0.00027397,2]
[425009062,1781412646000,-500.0,0.00027397,2]
[425009063,1781412646000,-500.0,0.00027397,2]
[425009068,1781412646000,-500.0,0.00027397,2]
[425009064,1781412646000,-500.0,0.00027397,2]
[425009074,1781412646000,-574.62,0.00027397,2]
[425009067,1781412646000,-1076.43,0.00027397,2]
[425009065,1781412646000,-1163.17,0.00027397,2]
[425009073,1781412646000,-502.17,0.00027397,2]
[425009072,1781412646000,-992.72,0.00027397,2]
[425009069,1781412646000,-500.0,0.00027397,2]
[425009071,1781412646000,-500.0,0.00027397,2]
[425009055,1781412646000,-1881.88,0.00027397,2]
[425009102,1781412646000,-743.15,0.00027397,2]
[425009100,1781412646000,-500.0,0.00027397,2]
[425009104,1781412646000,-500.0,0.00027397,2]
[425009142,1781412646000,-2098.27,0.00027397,2]
[425009144,1781412646000,-500.0,0.00027397,2]
[425009143,1781412646000,-1220.53,0.00027397,2]
[425009146,1781412646000,-5753.69,0.00027397,2]
[425009141,1781412646000,-500.0,0.00027397,2]
[425009139,1781412646000,-500.0,0.00027397,2]
[425009145,1781412646000,-687.87,0.00027397,2]
[425009147,1781412646000,-1020.63,0.00027397,2]
[425009149,1781412646000,-4250.44,0.00027397,2]
[425009152,1781412646000,-1412.97,0.00027397,2]
[425009151,1781412646000,-580.11729311,0.00027397,2]
[425009150,1781412646000,-757.3,0.00027397,2]
[425009138,1781412646000,-500.0,0.00027397,2]
[425009148,1781412646000,-500.0,0.00027397,2]
[425009158,1781412646000,-500.0,0.00027397,2]
[425009155,1781412646000,-1973.87,0.00027397,2]
[425009153,1781412646000,-500.0,0.00027397,2]
[425009156,1781412646000,-500.0,0.00027397,2]
[425009154,1781412646000,-500.0,0.00027397,2]
[425009159,1781412646000,-500.0,0.00027397,2]
[425009163,1781412646000,-500.0,0.00027397,2]
[425009165,1781412646000,-1592.68,0.00027397,2]
[425009162,1781412646000,-500.0,0.00027397,2]
[425009106,1781412646000,-500.0,0.00027397,2]
[425009164,1781412646000,-1150.74,0.00027397,2]
[425009166,1781412646000,-2149.5,0.00027397,2]
[425009157,1781412646000,-500.0,0.00027397,2]
[425009140,1781412646000,-500.0,0.00027397,2]
[425009161,1781412646000,-973.6,0.00027397,2]
[425009137,1781412646000,-233.30491009,0.00027397,2]
[425009136,1781412646000,-500.0,0.00027397,2]
[425009107,1781412646000,-633.12178597,0.00027397,2]
[425009105,1781412646000,-500.0,0.00027397,2]
[425009111,1781412646000,-1209.78,0.00027397,2]
[425009112,1781412646000,-500.0,0.00027397,2]
[425009113,1781412646000,-500.0,0.00027397,2]
[425009114,1781412646000,-500.0,0.00027397,2]
[425009118,1781412646000,-1338.92,0.00027397,2]
[425009116,1781412646000,-2093.51,0.00027397,2]
[425009121,1781412646000,-500.0,0.00027397,2]
[425009120,1781412646000,-5405.22,0.00027397,2]
[425009117,1781412646000,-2496.95,0.00027397,2]
[425009119,1781412646000,-15553.71,0.00027397,2]
[425009108,1781412646000,-500.0,0.00027397,2]
[425009115,1781412646000,-500.0,0.00027397,2]
[425009122,1781412646000,-500.0,0.00027397,2]
[425009132,1781412646000,-500.0,0.00027397,2]
[425009130,1781412646000,-500.13,0.00027397,2]
[425009128,1781412646000,-2011.8,0.00027397,2]
[425009129,1781412646000,-500.0,0.00027397,2]
[425009131,1781412646000,-500.0,0.00027397,2]
[425009125,1781412646000,-500.0,0.00027397,2]
[425009124,1781412646000,-500.0,0.00027397,2]
[425009126,1781412646000,-500.0,0.00027397,2]
[425009134,1781412646000,-500.0,0.00027397,2]
[425009123,1781412646000,-2075.95,0.00027397,2]
[425009127,1781412646000,-954.15,0.00027397,2]
[425009208,1781412647000,-500.0,0.00027397,2]
[425009193,1781412647000,-500.0,0.00027397,2]
[425009203,1781412647000,-883.55,0.00027397,2]
[425009192,1781412647000,-837.03,0.00027397,2]
[425009199,1781412647000,-3102.37,0.00027397,2]
[425009197,1781412647000,-500.0,0.00027397,2]
[425009195,1781412647000,-608.87,0.00027397,2]
[425009196,1781412647000,-500.0,0.00027397,2]
[425009204,1781412647000,-510.37,0.00027397,2]
[425009198,1781412647000,-500.0,0.00027397,2]
[425009194,1781412647000,-1477.01,0.00027397,2]
[425009211,1781412647000,-809.36,0.00027397,2]
[425009209,1781412647000,-2375.22,0.00027397,2]
[425009206,1781412647000,-500.0,0.00027397,2]
[425009207,1781412647000,-1270.21,0.00027397,2]
[425009210,1781412647000,-500.0,0.00027397,2]
[425009205,1781412647000,-955.0,0.00027397,2]
[425009212,1781412647000,-775.96,0.00027397,2]
[425009213,1781412647000,-500.0,0.00027397,2]
[425009216,1781412647000,-500.0,0.00027397,2]
[425009215,1781412647000,-500.0,0.00027397,2]
[425009217,1781412647000,-500.0,0.00027397,2]
[425009200,1781412647000,-889.97,0.00027397,2]
[425009219,1781412647000,-500.0,0.00027397,2]
[425009214,1781412647000,-2352.69,0.00027397,2]
[425009202,1781412647000,-500.0,0.00027397,2]
[425009177,1781412647000,-2519.65,0.00027397,2]
[425009189,1781412647000,-558.23,0.00027397,2]
[425009218,1781412647000,-3220.54,0.00027397,2]
[425009170,1781412647000,-2801.1,0.00027397,2]
[425009169,1781412647000,-926.31,0.00027397,2]
[425009167,1781412647000,-1525.12,0.00027397,2]
[425009168,1781412647000,-218.16346554,0.00027397,2]
[425009181,1781412647000,-325.27651831,0.00027397,2]
[425009172,1781412647000,-500.0,0.00027397,2]
[425009180,1781412647000,-4432.91,0.00027397,2]
[425009176,1781412647000,-500.0,0.00027397,2]
[425009173,1781412647000,-561.28,0.00027397,2]
[425009171,1781412647000,-1175.8,0.00027397,2]